[Event "Régional Jeunes Occitanie 2024"]
[Site "L'Isle Jourdain, France"]
[Date "2024.02.20"]
[Round "1.6"]
[White "DUCOS, Ermioni"]
[Black "WITTMANN, Paul"]
[Result "0-1"]
[TimeControl "1h30 + 30s/cps"]
[WhiteElo "1199"]
[BlackElo "1536"]

1. e4 {[%clk 01:30:58]} {[%emt 00:00:01]} c5 {[%clk 01:29:31]} {[%emt
00:01:29]} 2. Bc4 {[%clk 01:31:03]} {[%emt 00:00:25]} e6 {[%clk 01:29:34]}
{[%emt 00:00:27]} 3. Nc3 {[%clk 01:31:05]} {[%emt 00:00:29]} Nf6 {[%clk
01:29:34]} {[%emt 00:00:29]} 4. a3 {[%clk 01:28:06]} {[%emt 00:03:29]} Nc6
{[%clk 01:27:22]} {[%emt 00:02:42]} 5. d3 {[%clk 01:25:43]} {[%emt 00:02:53]}
d5 {[%clk 01:26:45]} {[%emt 00:01:08]} 6. exd5 {[%clk 01:25:04]} {[%emt
00:10:45]} exd5 {[%clk 01:27:01]} 7. Ba2 {[%clk 01:24:46]} Be7 {[%clk
01:26:05]} 8. Nge2 {[%clk 01:24:13]} Bf5 {[%clk 01:23:44]} 9. Ng3 {[%clk
01:22:41]} Bg6 {[%clk 01:23:05]} 10. Bg5 {[%clk 01:21:16]} {[%emt 00:01:50]} d4
{[%clk 01:18:02]} {[%emt 00:05:33]} 11. Nce2 {[%clk 01:14:37]} {[%emt
00:07:10]} O-O {[%clk 01:17:45]} {[%emt 00:08:15]} 12. O-O {[%clk 01:14:52]} h6
{[%clk 01:17:33]} 13. h3 {[%clk 01:15:13]} hxg5 {[%clk 01:16:16]} 14. Qd2
{[%clk 01:12:05]} Nh7 {[%clk 01:13:48]} {[%emt 00:02:01]} 15. Bc4 {[%clk
01:08:03]} {[%emt 00:04:32]} Ne5 {[%clk 01:12:31]} {[%emt 00:01:47]} 16. Ba2
{[%clk 01:07:09]} {[%emt 00:01:25]} Bd6 {[%clk 01:11:20]} {[%emt 00:01:40]} 17.
Ne4 {[%clk 01:05:32]} {[%emt 00:02:07]} Bxe4 {[%clk 01:11:07]} {[%emt
00:00:43]} 18. dxe4 {[%clk 01:05:48]} {[%emt 00:00:14]} g4 {[%clk 01:11:23]}
{[%emt 00:00:15]} 19. Nf4 {[%clk 01:04:38]} {[%emt 00:01:40]} Qg5 {[%clk
01:10:41]} {[%emt 00:01:11]} 20. Rad1 {[%clk 01:03:18]} {[%emt 00:01:51]} Nf3+
{[%clk 01:08:26]} {[%emt 00:02:45]} 21. gxf3 {[%clk 01:01:40]} {[%emt
00:02:07]} Bxf4 {[%clk 01:08:11]} {[%emt 00:00:46]} 22. h4 {[%clk 01:02:08]}
{[%emt 00:00:02]} Qh6 {[%clk 01:07:59]} {[%emt 00:00:42]} 23. Qe2 {[%clk
01:01:26]} {[%emt 00:01:37]} Qxh4 {[%clk 01:08:15]} 0-1

[ePGN "0.1;DGT LiveChess/2.2.6"]

[Event "Régional Jeunes Occitanie 2024"]
[Site "L'Isle Jourdain, France"]
[Date "2024.02.21"]
[Round "2.6"]
[White "WITTMANN, Paul"]
[Black "BROT-CORNET, Leonard"]
[Result "1-0"]
[TimeControl "1h30 + 30s/cps"]
[WhiteElo "1536"]
[BlackElo "1266"]

1. e4 {[%clk 01:30:03]} {[%emt 00:00:56]} e6 {[%clk 01:30:53]} {[%emt
00:00:08]} 2. d4 {[%clk 01:29:56]} {[%emt 00:00:38]} d5 {[%clk 01:30:55]}
{[%emt 00:00:27]} 3. exd5 {[%clk 01:29:43]} {[%emt 00:00:42]} exd5 {[%clk
01:31:10]} {[%emt 00:00:15]} 4. c4 {[%clk 01:29:13]} {[%emt 00:00:59]} Nf6
{[%clk 01:31:11]} {[%emt 00:00:29]} 5. Nc3 {[%clk 01:28:48]} {[%emt 00:00:55]}
Bb4 {[%clk 01:30:58]} {[%emt 00:00:44]} 6. Bg5 {[%clk 01:24:52]} {[%emt
00:04:25]} c6 {[%clk 01:27:07]} {[%emt 00:04:21]} 7. Qb3 {[%clk 01:22:12]}
{[%emt 00:03:10]} Qe7+ {[%clk 01:24:12]} {[%emt 00:03:25]} 8. Be2 {[%clk
01:22:24]} {[%emt 00:00:18]} dxc4 {[%clk 01:24:04]} {[%emt 00:00:38]} 9. Qxc4
{[%clk 01:22:47]} {[%emt 00:00:06]} Be6 {[%clk 01:23:07]} {[%emt 00:01:27]} 10.
Qd3 {[%clk 01:23:03]} {[%emt 00:00:14]} Nbd7 {[%clk 01:21:19]} {[%emt
00:02:19]} 11. Nf3 {[%clk 01:22:46]} {[%emt 00:00:46]} h6 {[%clk 01:20:59]}
{[%emt 00:00:50]} 12. Bh4 {[%clk 01:23:03]} {[%emt 00:00:13]} O-O {[%clk
01:20:47]} {[%emt 00:00:43]} 13. O-O {[%clk 01:22:47]} {[%emt 00:00:45]} Rfe8
{[%clk 01:20:30]} {[%emt 00:00:47]} 14. Rfe1 {[%clk 01:19:48]} {[%emt
00:03:28]} Rac8 {[%clk 01:16:58]} {[%emt 00:04:03]} 15. a3 {[%clk 01:19:00]}
{[%emt 00:01:18]} Ba5 {[%clk 01:17:09]} {[%emt 00:00:19]} 16. Ne5 {[%clk
01:11:35]} {[%emt 00:07:54]} Qd6 {[%clk 01:08:08]} {[%emt 00:09:31]} 17. Bd1
{[%clk 01:03:11]} {[%emt 00:08:55]} Nd5 {[%clk 00:59:29]} {[%emt 00:09:09]} 18.
Nxd7 {[%clk 01:01:07]} {[%emt 00:02:34]} Bxd7 {[%clk 00:58:47]} {[%emt
00:01:12]} 19. Bc2 {[%clk 01:01:03]} {[%emt 00:00:34]} g6 {[%clk 00:57:12]}
{[%emt 00:02:04]} 20. Ne4 {[%clk 01:00:39]} {[%emt 00:00:54]} Bf5 {[%clk
00:47:29]} {[%emt 00:10:14]} 21. Nxd6 {[%clk 00:55:39]} {[%emt 00:05:30]} Rxe1+
{[%clk 00:46:50]} {[%emt 00:01:09]} 22. Rxe1 {[%clk 00:56:01]} {[%emt
00:00:08]} Bxd3 {[%clk 00:46:37]} {[%emt 00:00:42]} 23. Nxc8 {[%clk 00:56:19]}
{[%emt 00:00:12]} Bxe1 {[%clk 00:45:08]} {[%emt 00:01:58]} 24. Bxd3 {[%clk
00:56:39]} {[%emt 00:00:12]} Ba5 {[%clk 00:44:18]} {[%emt 00:01:19]} 25. Ne7+
{[%clk 00:55:59]} {[%emt 00:01:10]} Nxe7 {[%clk 00:44:44]} {[%emt 00:00:04]} 26.
Bxe7 {[%clk 00:56:18]} {[%emt 00:00:11]} Bb6 {[%clk 00:44:19]} {[%emt
00:00:55]} 27. Bc5 {[%clk 00:56:40]} {[%emt 00:00:08]} Bxc5 {[%clk 00:44:44]}
{[%emt 00:00:05]} 28. dxc5 {[%clk 00:56:57]} {[%emt 00:00:13]} Kg7 {[%clk
00:43:49]} {[%emt 00:01:26]} 29. Kf1 {[%clk 00:57:03]} {[%emt 00:00:24]} Kf6
{[%clk 00:44:05]} {[%emt 00:00:13]} 30. Ke2 {[%clk 00:56:58]} {[%emt 00:00:35]}
Ke5 {[%clk 00:44:34]} {[%emt 00:00:02]} 31. Ke3 {[%clk 00:57:07]} {[%emt
00:00:20]} g5 {[%clk 00:45:02]} {[%emt 00:00:02]} 32. g3 {[%clk 00:56:56]}
{[%emt 00:00:41]} f6 {[%clk 00:45:29]} {[%emt 00:00:03]} 33. f4+ {[%clk
00:56:53]} {[%emt 00:00:33]} Ke6 {[%clk 00:45:57]} {[%emt 00:00:02]} 34. Ke4
{[%clk 00:57:11]} {[%emt 00:00:12]} f5+ {[%clk 00:46:07]} {[%emt 00:00:20]} 35.
Kd4 {[%clk 00:57:27]} {[%emt 00:00:14]} g4 {[%clk 00:46:34]} {[%emt 00:00:04]}
36. Bc4+ {[%clk 00:57:40]} {[%emt 00:00:17]} Kf6 {[%clk 00:46:53]} {[%emt
00:00:11]} 37. b3 {[%clk 00:57:20]} {[%emt 00:00:49]} h5 {[%clk 00:47:12]}
{[%emt 00:00:12]} 38. b4 {[%clk 00:57:38]} {[%emt 00:00:12]} b6 {[%clk
00:47:34]} {[%emt 00:00:08]} 39. a4 {[%clk 00:57:52]} {[%emt 00:00:16]} bxc5+
{[%clk 00:47:36]} {[%emt 00:00:27]} 40. Kxc5 {[%emt 00:00:16]} Ke7 {[%clk
00:47:43]} {[%emt 00:00:05]} 41. Kxc6 {[%clk 00:58:40]} Kf6 {[%clk 00:48:01]}
{[%emt 00:00:27]} 42. Kd6 {[%clk 00:58:55]} {[%emt 00:00:14]} a5 {[%clk
00:48:22]} {[%emt 00:00:10]} 43. b5 {[%clk 00:59:15]} {[%emt 00:00:10]} Kg7
{[%clk 00:48:42]} {[%emt 00:00:09]} 44. Ke7 {[%clk 00:59:36]} {[%emt 00:00:09]}
Kh6 {[%clk 00:48:53]} {[%emt 00:00:19]} 45. Kf7 {[%clk 00:59:44]} {[%emt
00:00:22]} h4 {[%clk 00:49:16]} {[%emt 00:00:08]} 46. b6 {[%clk 00:59:35]}
{[%emt 00:00:38]} h3 {[%clk 00:49:25]} {[%emt 00:00:12]} 47. b7 {[%clk
01:00:05]} Kh5 {[%clk 00:49:53]} {[%emt 00:00:11]} 48. b8=R {[%clk 01:00:13]}
{[%emt 00:00:23]} Kh6 {[%emt 00:00:03]} 49. Rh8+ {[%emt 00:01:17]} 1-0

[Event "Régional Jeunes Occitanie 2024"]
[Site "L'Isle Jourdain, France"]
[Date "2024.02.21"]
[Round "2.3"]
[White "PIERROT, Yohann"]
[Black "FLEUTIAUX, Bertrand"]
[Result "1-0"]
[TimeControl "1h30 + 30s/cps"]
[WhiteElo "2053"]
[BlackElo "1563"]

1. e4 {[%clk 01:30:58]} {[%emt 00:00:02]} e5 {[%clk 01:30:55]} {[%emt
00:00:06]} 2. Nf3 {[%clk 01:31:11]} {[%emt 00:00:17]} Nc6 {[%clk 01:31:18]}
{[%emt 00:00:06]} 3. Bc4 {[%clk 01:31:22]} {[%emt 00:00:19]} Bc5 {[%clk
01:31:40]} {[%emt 00:00:08]} 4. d3 {[%clk 01:31:43]} {[%emt 00:00:09]} Nf6
{[%clk 01:31:57]} {[%emt 00:00:13]} 5. c3 {[%clk 01:32:08]} {[%emt 00:00:06]}
d6 {[%clk 01:31:49]} {[%emt 00:00:37]} 6. O-O {[%clk 01:32:28]} {[%emt
00:00:10]} h6 {[%clk 01:31:33]} {[%emt 00:00:46]} 7. a4 {[%clk 01:32:20]}
{[%emt 00:00:39]} a5 {[%clk 01:31:06]} {[%emt 00:00:56]} 8. Nbd2 {[%clk
01:29:45]} {[%emt 00:03:05]} O-O {[%clk 01:30:00]} {[%emt 00:01:35]} 9. Re1
{[%clk 01:29:14]} {[%emt 00:01:02]} Be6 {[%clk 01:26:06]} {[%emt 00:04:24]} 10.
h3 {[%clk 01:21:30]} {[%emt 00:08:14]} Qd7 {[%clk 01:19:17]} {[%emt 00:07:18]}
11. Bb5 {[%clk 01:20:50]} {[%emt 00:01:11]} Qe7 {[%clk 01:11:36]} {[%emt
00:08:10]} 12. Nf1 {[%clk 01:18:01]} {[%emt 00:03:19]} Na7 {[%clk 01:03:27]}
{[%emt 00:08:39]} 13. d4 {[%clk 01:13:28]} {[%emt 00:05:04]} exd4 {[%clk
01:02:38]} {[%emt 00:01:18]} 14. Nxd4 {[%clk 01:08:18]} {[%emt 00:05:40]} Bxd4
{[%clk 00:53:50]} {[%emt 00:09:18]} 15. cxd4 {[%clk 01:06:18]} {[%emt
00:02:30]} Nxb5 {[%clk 00:53:22]} {[%emt 00:00:58]} 16. axb5 {[%clk 01:06:47]}
{[%emt 00:00:02]} b6 {[%clk 00:46:26]} {[%emt 00:07:25]} 17. Ng3 {[%clk
01:06:31]} {[%emt 00:00:46]} Qe8 {[%clk 00:44:16]} {[%emt 00:02:39]} 18. d5
{[%clk 01:00:19]} {[%emt 00:06:42]} Bd7 {[%clk 00:40:29]} {[%emt 00:04:17]} 19.
Bd2 {[%clk 00:59:53]} {[%emt 00:00:57]} Bxb5 {[%clk 00:38:42]} {[%emt
00:02:16]} 20. Bc3 {[%clk 01:00:16]} {[%emt 00:00:07]} Qd8 {[%clk 00:29:40]}
{[%emt 00:09:31]} 21. Qf3 {[%clk 00:53:31]} {[%emt 00:07:15]} Bd7 {[%clk
00:26:03]} {[%emt 00:04:07]} 22. Rac1 {[%clk 00:50:11]} {[%emt 00:03:51]} Rc8
{[%clk 00:25:40]} {[%emt 00:00:52]} 23. Kh2 {[%clk 00:36:18]} {[%emt 00:14:24]}
Re8 {[%clk 00:22:47]} {[%emt 00:03:23]} 24. Bxf6 {[%clk 00:34:57]} {[%emt
00:01:51]} Qxf6 {[%clk 00:22:45]} {[%emt 00:00:31]} 25. Qxf6 {[%clk 00:35:23]}
{[%emt 00:00:06]} gxf6 {[%clk 00:23:10]} {[%emt 00:00:05]} 26. Nh5 {[%clk
00:35:20]} {[%emt 00:00:33]} Kh8 {[%clk 00:21:18]} {[%emt 00:02:22]} 27. Nxf6
{[%clk 00:35:39]} {[%emt 00:00:11]} Re7 {[%clk 00:21:38]} {[%emt 00:00:10]} 28.
Nxd7 {[%clk 00:35:36]} {[%emt 00:00:33]} Rxd7 {[%clk 00:22:06]} {[%emt
00:00:02]} 29. Rc6 {[%clk 00:35:26]} {[%emt 00:00:39]} Re8 {[%clk 00:18:30]}
{[%emt 00:04:05]} 30. f3 {[%clk 00:29:30]} {[%emt 00:06:28]} Kg7 {[%clk
00:12:33]} {[%emt 00:06:18]} 31. Rec1 {[%clk 00:29:22]} {[%emt 00:00:47]} Ree7
{[%clk 00:12:46]} {[%emt 00:00:18]} 32. Kg3 {[%clk 00:29:47]} {[%emt 00:00:05]}
Kg6 {[%clk 00:11:17]} {[%emt 00:01:58]} 33. Kf4 {[%clk 00:29:43]} {[%emt
00:00:35]} f6 {[%clk 00:10:56]} {[%emt 00:00:51]} 34. b3 {[%clk 00:29:46]}
{[%emt 00:00:26]} Rf7 {[%clk 00:10:15]} {[%emt 00:01:11]} 35. g4 {[%clk
00:30:01]} {[%emt 00:00:15]} Rfe7 {[%clk 00:08:50]} {[%emt 00:01:55]} 36. h4
{[%clk 00:29:14]} {[%emt 00:01:18]} Kg7 {[%clk 00:07:26]} {[%emt 00:01:53]} 37.
R6c2 {[%clk 00:27:59]} {[%emt 00:01:46]} Kg6 {[%clk 00:06:47]} {[%emt
00:01:08]} 38. Rg2 {[%clk 00:27:21]} {[%emt 00:01:07]} Re5 {[%clk 00:06:20]}
{[%emt 00:02:35]} 39. Ke3 {[%clk 00:26:55]} Ree7 {[%clk 00:04:13]} {[%emt
00:01:56]} 40. f4 {[%clk 00:27:07]} {[%emt 00:00:18]} Rg7 {[%clk 00:03:14]}
{[%emt 00:01:28]} 41. f5+ {[%clk 00:20:20]} {[%emt 00:07:18]} Kf7 {[%clk
00:02:37]} {[%emt 00:01:07]} 42. Kf4 {[%clk 00:20:13]} {[%emt 00:00:37]} Re7
{[%clk 00:01:47]} {[%emt 00:01:21]} 43. Rc4 {[%clk 00:17:45]} {[%emt 00:02:57]}
Rd7 {[%clk 00:01:31]} {[%emt 00:00:46]} 44. Rg3 {[%clk 00:16:59]} {[%emt
00:01:16]} Re7 {[%clk 00:01:37]} {[%emt 00:00:25]} 45. Rc2 {[%clk 00:16:06]}
{[%emt 00:01:22]} Rd7 {[%clk 00:01:30]} {[%emt 00:00:37]} 46. Rgc3 {[%clk
00:15:33]} {[%emt 00:01:03]} Kf8 {[%clk 00:01:47]} {[%emt 00:00:13]} 47. g5
{[%clk 00:13:35]} {[%emt 00:02:28]} hxg5+ {[%clk 00:01:15]} {[%emt 00:01:01]}
48. hxg5 {[%clk 00:13:33]} {[%emt 00:00:32]} fxg5+ {[%clk 00:00:52]} {[%emt
00:00:53]} 49. Kg4 {[%clk 00:13:59]} {[%emt 00:00:04]} Rde7 {[%clk 00:00:46]}
{[%emt 00:00:37]} 50. Rc4 {[%clk 00:13:51]} {[%emt 00:00:38]} Re5 {[%clk
00:00:36]} {[%emt 00:00:39]} 51. Rh2 {[%clk 00:12:42]} {[%emt 00:01:39]} Rge7
{[%clk 00:00:43]} {[%emt 00:02:27]} 52. Kxg5 {[%clk 00:11:30]} Rxe4 {[%clk
00:00:56]} 53. Rxe4 {[%clk 00:11:09]} {[%emt 00:00:47]} Rxe4 {[%clk 00:01:23]}
{[%emt 00:00:02]} 54. Kf6 {[%clk 00:11:35]} {[%emt 00:00:04]} Kg8 {[%clk
00:01:11]} {[%emt 00:00:41]} 55. Rc2 {[%clk 00:09:56]} {[%emt 00:02:09]} Re5
{[%emt 00:01:04]} 56. Rxc7 {[%clk 00:10:02]} {[%emt 00:00:01]} Rxd5 {[%clk
00:01:28]} {[%emt 00:00:03]} 57. Kg6 {[%clk 00:10:16]} {[%emt 00:00:16]} Kf8
{[%clk 00:01:34]} {[%emt 00:00:24]} 58. f6 {[%clk 00:10:42]} {[%emt 00:00:04]}
Rc5 {[%clk 00:01:24]} {[%emt 00:06:54]} 59. Rh7 {[%clk 00:10:10]} Ke8 {[%clk
00:00:33]} 60. Rh8+ {[%clk 00:09:50]} Kd7 {[%clk 00:00:53]} 61. f7 {[%clk
00:10:11]} Rc1 {[%clk 00:00:32]} 62. f8=Q {[%clk 00:10:29]} Rg1+ {[%clk
00:00:47]} 63. Kh5 {[%clk 00:10:56]} 1-0

[Event "Régional Jeunes Occitanie 2024"]
[Site "L'Isle Jourdain, France"]
[Date "2024.02.21"]
[Round "2.1"]
[White "BELLINI, Luca"]
[Black "ROUX, Nathan"]
[Result "0-1"]
[TimeControl "1h30 + 30s/cps"]
[WhiteElo "1311"]
[BlackElo "1810"]

1. c4 {[%clk 01:30:59]} Nf6 {[%clk 01:30:45]} {[%emt 00:00:14]} 2. d4 {[%clk
01:30:59]} {[%emt 00:00:31]} e6 {[%clk 01:31:09]} {[%emt 00:00:06]} 3. Nf3
{[%clk 01:30:57]} {[%emt 00:00:33]} Bb4+ {[%clk 01:30:10]} {[%emt 00:01:28]} 4.
Bd2 {[%clk 01:31:10]} {[%emt 00:00:17]} Qe7 {[%clk 01:29:43]} {[%emt 00:00:56]}
5. a3 {[%clk 01:29:20]} {[%emt 00:02:22]} Bxd2+ {[%clk 01:29:31]} {[%emt
00:00:40]} 6. Nbxd2 {[%clk 01:28:41]} {[%emt 00:01:10]} d5 {[%clk 01:24:37]}
{[%emt 00:05:23]} 7. e3 {[%clk 01:27:05]} {[%emt 00:02:07]} O-O {[%clk
01:20:47]} {[%emt 00:04:19]} 8. Qc2 {[%clk 01:23:52]} {[%emt 00:03:43]} c6
{[%clk 01:16:59]} {[%emt 00:04:18]} 9. c5 {[%clk 01:18:05]} {[%emt 00:06:18]}
a5 {[%clk 01:11:38]} {[%emt 00:05:51]} 10. Ne5 {[%clk 01:05:24]} {[%emt
00:13:10]} Nbd7 {[%clk 01:09:12]} {[%emt 00:02:55]} 11. Ndf3 {[%clk 01:03:45]}
{[%emt 00:02:10]} Nxe5 {[%clk 01:04:20]} {[%emt 00:05:22]} 12. Nxe5 {[%clk
01:04:04]} {[%emt 00:00:12]} Nd7 {[%clk 01:04:08]} {[%emt 00:00:41]} 13. Nxd7
{[%clk 01:03:20]} {[%emt 00:01:14]} Bxd7 {[%clk 01:04:19]} {[%emt 00:00:19]} 14.
Be2 {[%clk 01:02:32]} {[%emt 00:01:18]} e5 {[%clk 01:02:50]} {[%emt 00:01:58]}
15. O-O {[%clk 01:00:38]} {[%emt 00:02:25]} Qg5 {[%clk 00:57:20]} {[%emt
00:06:00]} 16. f4 {[%clk 00:58:51]} {[%emt 00:02:18]} exf4 {[%clk 00:55:16]}
{[%emt 00:02:33]} 17. Rxf4 {[%clk 00:55:12]} {[%emt 00:04:10]} Rfe8 {[%clk
00:48:38]} {[%emt 00:07:08]} 18. Qd2 {[%clk 00:53:25]} {[%emt 00:02:18]} Re7
{[%clk 00:44:54]} {[%emt 00:04:12]} 19. Re1 {[%clk 00:51:33]} {[%emt 00:02:23]}
Bf5 {[%clk 00:31:30]} {[%emt 00:13:53]} 20. Ref1 {[%clk 00:41:48]} {[%emt
00:10:17]} Bh3 {[%clk 00:26:23]} {[%emt 00:05:35]} 21. Bf3 {[%clk 00:41:39]}
{[%emt 00:00:40]} Rae8 {[%clk 00:25:25]} {[%emt 00:01:27]} 22. Re1 {[%clk
00:41:23]} {[%emt 00:00:46]} h5 {[%clk 00:18:16]} {[%emt 00:07:38]} 23. Kf2
{[%clk 00:38:27]} {[%emt 00:02:41]} Bg4 {[%clk 00:16:58]} {[%emt 00:02:34]} 24.
Bxg4 {[%clk 00:30:55]} {[%emt 00:08:02]} hxg4 {[%clk 00:17:20]} {[%emt
00:00:07]} 25. Kg3 {[%clk 00:24:16]} {[%emt 00:07:09]} Qh6 {[%clk 00:13:46]}
{[%emt 00:04:05]} 26. Qd3 {[%clk 00:22:05]} {[%emt 00:02:42]} Re4 {[%clk
00:11:44]} {[%emt 00:02:31]} 27. Rxe4 {[%clk 00:16:45]} {[%emt 00:05:50]} Rxe4
{[%clk 00:12:12]} {[%emt 00:00:02]} 28. Qd2 {[%clk 00:15:24]} {[%emt 00:01:51]}
g5 {[%clk 00:11:22]} {[%emt 00:01:19]} 29. h3 {[%clk 00:15:33]} {[%emt
00:00:22]} gxh3 {[%clk 00:09:50]} {[%emt 00:04:21]} 30. gxh3 {[%clk 00:15:45]}
Rh4 {[%clk 00:10:03]} 31. Qg2 {[%clk 00:14:27]} {[%emt 00:00:03]} f5 {[%clk
00:09:59]} {[%emt 00:00:35]} 32. Rg1 {[%clk 00:13:54]} {[%emt 00:01:02]} g4
{[%clk 00:09:44]} {[%emt 00:00:46]} 0-1

[Event "Régional Jeunes Occitanie 2024"]
[Site "L'Isle Jourdain, France"]
[Date "2024.02.21"]
[Round "2.4"]
[White "LAVILLEDIEU, Pierre-Loup"]
[Black "PERROUIN, Alexian"]
[Result "0-1"]
[TimeControl "1h30 + 30s/cps"]
[WhiteElo "1553"]
[BlackElo "1829"]

1. d4 {[%clk 01:30:49]} {[%emt 00:00:10]} Nf6 {[%clk 01:30:56]} {[%emt
00:00:05]} 2. c4 {[%clk 01:30:57]} {[%emt 00:00:21]} g6 {[%clk 01:31:23]}
{[%emt 00:00:03]} 3. h4 {[%clk 01:30:49]} {[%emt 00:00:37]} Bg7 {[%clk
01:30:41]} {[%emt 00:01:14]} 4. Nc3 {[%clk 01:29:43]} {[%emt 00:01:34]} d6
{[%clk 01:30:00]} {[%emt 00:01:12]} 5. e4 {[%clk 01:28:09]} {[%emt 00:02:04]}
Nbd7 {[%clk 01:29:59]} {[%emt 00:00:32]} 6. f3 {[%clk 01:25:58]} {[%emt
00:02:41]} e5 {[%clk 01:27:46]} {[%emt 00:02:43]} 7. d5 {[%clk 01:24:41]}
{[%emt 00:01:46]} a5 {[%clk 01:25:31]} {[%emt 00:02:46]} 8. Be3 {[%clk
01:21:03]} {[%emt 00:04:07]} Nc5 {[%clk 01:24:10]} {[%emt 00:01:52]} 9. Qd2
{[%clk 01:18:18]} {[%emt 00:03:15]} Bd7 {[%clk 01:08:53]} {[%emt 00:15:48]} 10.
Bh6 {[%clk 01:10:53]} {[%emt 00:07:54]} Bxh6 {[%clk 01:07:59]} {[%emt
00:01:24]} 11. Qxh6 {[%clk 01:11:06]} {[%emt 00:00:16]} c6 {[%clk 01:01:01]}
{[%emt 00:07:30]} 12. Rd1 {[%clk 01:02:32]} {[%emt 00:09:03]} cxd5 {[%clk
00:48:39]} {[%emt 00:12:53]} 13. Nxd5 {[%clk 00:57:38]} {[%emt 00:05:23]} Nxd5
{[%clk 00:48:21]} {[%emt 00:00:48]} 14. cxd5 {[%clk 00:54:32]} {[%emt
00:03:36]} Qb6 {[%clk 00:46:17]} {[%emt 00:02:35]} 15. b3 {[%clk 00:48:25]}
{[%emt 00:06:36]} O-O-O {[%clk 00:35:53]} {[%emt 00:10:54]} 16. Bc4 {[%clk
00:42:57]} {[%emt 00:05:57]} f5 {[%clk 00:34:34]} {[%emt 00:01:50]} 17. exf5
{[%clk 00:38:25]} {[%emt 00:05:01]} gxf5 {[%clk 00:33:50]} {[%emt 00:01:14]} 18.
Qe3 {[%clk 00:35:23]} {[%emt 00:03:31]} Rhg8 {[%clk 00:32:22]} {[%emt
00:01:59]} 19. Qf2 {[%clk 00:34:19]} {[%emt 00:01:34]} Rg7 {[%clk 00:28:52]}
{[%emt 00:04:01]} 20. Ne2 {[%clk 00:32:09]} {[%emt 00:02:39]} Rdg8 {[%clk
00:27:57]} {[%emt 00:01:26]} 21. Rg1 {[%clk 00:30:12]} {[%emt 00:02:26]} Qb4+
{[%clk 00:26:29]} {[%emt 00:02:00]} 22. Kf1 {[%clk 00:27:31]} {[%emt 00:03:10]}
f4 {[%clk 00:18:39]} {[%emt 00:08:20]} 23. Nc1 {[%clk 00:22:27]} {[%emt
00:05:33]} Bh3 {[%clk 00:12:59]} {[%emt 00:06:09]} 24. Nd3 {[%clk 00:18:01]}
{[%emt 00:04:57]} Nxd3 {[%clk 00:12:56]} {[%emt 00:00:34]} 25. Bxd3 {[%clk
00:18:19]} {[%emt 00:00:12]} Rxg2 {[%clk 00:08:49]} {[%emt 00:04:36]} 26. Rxg2
{[%clk 00:14:21]} {[%emt 00:04:28]} Rxg2 {[%clk 00:07:38]} {[%emt 00:03:05]} 27.
Bf5+ {[%clk 00:11:51]} {[%emt 00:01:35]} Kb8 {[%clk 00:07:57]} {[%emt
00:00:12]} 28. Qe1 {[%clk 00:10:52]} {[%emt 00:01:28]} Qc5 {[%clk 00:06:59]}
{[%emt 00:01:48]} 29. Bxh3 {[%clk 00:09:26]} {[%emt 00:01:37]} Qg1# {[%emt
00:00:24]} 0-1